bitfinex/quotes_BTCUSD_20251009
["timestamp","ask_amount","ask_price","bid_price","bid_amount"]
[1760004507664,0.40663539,121940.0,121930.0,0.19267854]
[1760004508107,0.74787199,121940.0,121930.0,0.19267854]
[1760004508353,0.40663539,121940.0,121930.0,0.19267854]
[1760004508542,0.74787199,121940.0,121930.0,0.19267854]
[1760004508876,0.40663539,121940.0,121930.0,0.19267854]
[1760004509102,0.74787199,121940.0,121930.0,0.19267854]
[1760004510968,0.51635199,121940.0,121930.0,0.21520854]
[1760004511178,0.74787199,121940.0,121930.0,0.19267854]
[1760004511633,0.51635199,121940.0,121930.0,0.16402854]
[1760004511846,0.74787199,121940.0,121930.0,0.18023854]
[1760004512251,0.40663539,121940.0,121930.0,0.18023854]
[1760004512429,0.74787199,121940.0,121930.0,0.19184854]
[1760004513686,0.74787199,121940.0,121930.0,0.21437854]
[1760004514050,0.74180199,121940.0,121930.0,0.21437854]
[1760004514687,0.74787199,121940.0,121930.0,0.19184854]
[1760004518607,0.74787199,121940.0,121930.0,0.02782]
[1760004518811,0.74787199,121940.0,121930.0,0.19184854]
[1760004519169,0.74787199,121940.0,121930.0,0.02782]
[1760004519374,0.74787199,121940.0,121930.0,0.19184854]
[1760004519779,0.74787199,121940.0,121930.0,0.02782]
[1760004520781,0.74787199,121940.0,121930.0,0.19184854]
[1760004523196,0.74787199,121940.0,121930.0,0.02782]
[1760004523610,0.74787199,121940.0,121930.0,0.19184854]
[1760004524030,0.91218109,121940.0,121930.0,0.21437854]
[1760004524263,0.65637324,121940.0,121930.0,0.21437854]
[1760004524435,0.42485324,121940.0,121930.0,0.21437854]
[1760004524612,0.42485279,121940.0,121930.0,0.21437854]
[1760004524837,0.65633279,121940.0,121930.0,0.21437854]
[1760004525709,0.40052494,121940.0,121930.0,0.21437854]
[1760004525996,0.65633279,121940.0,121930.0,0.21437854]
[1760004526199,0.42485279,121940.0,121930.0,0.21437854]
[1760004526501,0.65633279,121940.0,121930.0,0.21437854]
[1760004526680,0.40052494,121940.0,121930.0,0.21437854]
[1760004526882,0.65633279,121940.0,121930.0,0.21437854]
[1760004529265,0.60633279,121940.0,121930.0,0.21437854]
[1760004529464,0.80491998,121950.0,121930.0,0.21437854]
[1760004529663,0.23148,121940.0,121930.0,0.19184854]
[1760004530276,0.23148,121940.0,121930.0,0.21669854]
[1760004530893,0.39549508,121940.0,121930.0,0.21669854]
[1760004531537,0.23148,121940.0,121930.0,0.21669854]
[1760004531740,0.23348,121940.0,121930.0,0.21669854]
[1760004535425,0.002,121940.0,121930.0,0.21669854]
[1760004535628,0.002,121940.0,121930.0,0.47250639]
[1760004536079,0.002,121940.0,121930.0,0.21669854]
[1760004536312,0.002,121940.0,121930.0,0.81726035]
[1760004537118,7e-05,121950.0,121940.0,0.16401508]
[1760004537357,7e-05,121950.0,121940.0,0.21448508]
[1760004537862,0.00058109,121950.0,121940.0,0.21448508]
[1760004538498,0.00058109,121950.0,121940.0,0.21548508]
[1760004538903,0.66038579,121960.0,121950.0,0.16400164]
[1760004539109,0.66038579,121960.0,121950.0,0.21447164]
[1760004539530,0.66089683,121960.0,121950.0,0.21447164]
[1760004539935,0.66912102,121960.0,121950.0,0.21447164]
[1760004540358,0.43764102,121960.0,121950.0,0.21447164]
[1760004540561,0.40508898,121960.0,121950.0,0.21447164]
[1760004540774,0.49690576,121960.0,121950.0,0.21447164]
[1760004540981,0.66089395,121960.0,121950.0,0.21447164]
[1760004541188,0.66089395,121960.0,121950.0,0.02712]
[1760004541189,0.44316338,121960.0,121950.0,0.02712]
[1760004541416,0.67464338,121960.0,121950.0,0.02712]
[1760004541824,0.93860063,121960.0,121950.0,0.02712]
[1760004542245,0.26299674,121960.0,121950.0,0.21447164]
[1760004542447,0.24109791,121960.0,121950.0,0.21447164]
[1760004542879,0.66089395,121960.0,121950.0,0.21447164]
[1760004543505,0.24109791,121960.0,121950.0,0.21447164]
[1760004543919,0.49690576,121960.0,121950.0,0.21447164]
[1760004544535,0.24109791,121960.0,121950.0,0.21447164]
[1760004547009,0.4050861,121960.0,121950.0,0.21447164]
[1760004547436,0.1736061,121960.0,121950.0,0.21447164]
[1760004547645,0.00961791,121960.0,121950.0,0.47027949]
[1760004547888,0.24105791,121960.0,121950.0,0.21447164]
[1760004549939,0.00961791,121960.0,121950.0,0.21447164]
[1760004559516,0.00961791,121960.0,121950.0,0.47027949]
[1760004561796,0.00961791,121960.0,121950.0,0.21447164]
[1760004563572,0.00961791,121960.0,121950.0,0.44591164]
[1760004563806,0.43548395,121960.0,121950.0,0.19112164]
[1760004564012,0.2634729,121960.0,121940.0,0.16401508]
[1760004564221,0.41980949,121950.0,121940.0,0.39545508]
[1760004564422,0.42587949,121950.0,121940.0,0.16401508]
[1760004564630,0.42587949,121950.0,121940.0,0.17958508]
[1760004565045,0.45050446,121950.0,121940.0,0.17958508]
[1760004565642,0.45050446,121950.0,121930.0,0.26832895]
[1760004565871,0.25580785,121940.0,121930.0,0.52992085]
[1760004566085,0.26187785,121940.0,121930.0,0.54655085]
[1760004566296,0.25580785,121940.0,121930.0,0.57052085]
[1760004566501,0.26402895,121940.0,121930.0,0.57052085]
[1760004566940,0.50006341,121950.0,121930.0,0.57052085]
[1760004567154,0.50006341,121950.0,121940.0,0.16401508]
[1760004567373,0.76194126,121950.0,121930.0,0.55689085]
[1760004567589,0.25580785,121940.0,121930.0,0.55689085]
[1760004567798,0.25580785,121940.0,121930.0,0.57252085]
[1760004568264,0.42589293,121940.0,121930.0,0.03160693]
[1760004568481,0.42589293,121940.0,121930.0,0.01497693]
[1760004568695,0.45051905,121940.0,121930.0,0.01497693]
[1760004569127,0.45860931,121940.0,121930.0,0.01497693]
[1760004569338,0.45860931,121940.0,121930.0,0.01999693]
[1760004569540,0.45860931,121940.0,121930.0,0.01799693]
[1760004569754,0.45860931,121940.0,121930.0,0.01899693]
[1760004569934,0.45860931,121940.0,121930.0,0.00236693]
[1760004570361,0.45860931,121940.0,121930.0,0.00336693]
[1760004570579,0.71441716,121940.0,121930.0,0.00236693]
[1760004570795,0.94965716,121940.0,121930.0,0.00236693]
[1760004571364,0.94965716,121940.0,121930.0,0.00336693]
[1760004572023,0.94585716,121940.0,121930.0,0.00336693]
[1760004572220,0.94965716,121940.0,121930.0,0.00336693]
[1760004572785,0.71821716,121940.0,121930.0,0.00336693]
[1760004572961,0.94965716,121940.0,121930.0,0.00336693]
[1760004573576,0.94965716,121940.0,121930.0,0.00136693]
[1760004573984,0.92503104,121940.0,121930.0,0.00136693]
[1760004574933,0.68979104,121940.0,121930.0,0.00136693]
[1760004575125,0.92123104,121940.0,121930.0,0.00136693]
[1760004575439,0.92503104,121940.0,121930.0,0.00136693]
[1760004575959,1.34502784,121940.0,121930.0,0.00136693]
[1760004576429,1.28965863,121940.0,121930.0,0.00136693]
[1760004577475,1.03385078,121940.0,121930.0,0.00136693]
[1760004579061,1.28965863,121940.0,121930.0,0.00136693]
[1760004580039,1.05821863,121940.0,121930.0,0.00136693]
[1760004580256,1.28965863,121940.0,121930.0,0.00136693]
[1760004583865,1.11913463,121940.0,121930.0,0.00136693]
[1760004586670,1.19913143,121940.0,121930.0,0.00136693]
[1760004587773,1.11913463,121940.0,121930.0,0.00136693]
[1760004587978,0.88769463,121940.0,121930.0,0.00136693]
[1760004588199,1.11913463,121940.0,121930.0,0.00136693]
[1760004589326,1.11533463,121940.0,121930.0,0.00136693]
[1760004589491,0.77424293,121940.0,121930.0,0.01679693]
[1760004589897,0.77424293,121940.0,121930.0,0.00136693]
[1760004595312,1.11533463,121940.0,121930.0,0.00136693]
[1760004595521,0.77424293,121940.0,121930.0,0.00136693]
[1760004595748,1.11533463,121940.0,121930.0,0.00136693]
[1760004596460,1.12301607,121940.0,121930.0,0.00136693]
[1760004598036,0.78192437,121940.0,121930.0,0.00136693]
[1760004598262,1.12301607,121940.0,121930.0,0.00136693]
[1760004602722,0.78192437,121940.0,121930.0,0.00136693]
[1760004602922,1.12301607,121940.0,121930.0,0.00136693]
[1760004603462,0.78192437,121940.0,121930.0,0.00136693]
[1760004603794,0.78192437,121940.0,121930.0,0.01762693]
[1760004604113,1.12301607,121940.0,121930.0,0.00136693]
[1760004604547,1.12681607,121940.0,121930.0,0.00136693]
[1760004604974,0.89157607,121940.0,121930.0,0.00136693]
[1760004605160,1.12301607,121940.0,121930.0,0.00136693]
[1760004605592,0.78192437,121940.0,121930.0,0.00136693]
[1760004605943,1.12301607,121940.0,121930.0,0.00136693]
[1760004607897,0.89157607,121940.0,121930.0,0.00136693]
[1760004608092,1.12301607,121940.0,121930.0,0.00136693]
[1760004608977,0.78192437,121940.0,121930.0,0.01762693]
[1760004609610,0.78192437,121940.0,121930.0,0.00136693]
[1760004609813,0.55048437,121940.0,121930.0,0.01762693]
[1760004610024,0.78192437,121940.0,121930.0,0.01762693]
[1760004612131,0.55048437,121940.0,121930.0,0.01762693]
[1760004612325,0.78192437,121940.0,121930.0,0.05321693]
[1760004612956,0.78192437,121940.0,121930.0,0.02973693]
[1760004613386,1.12301607,121940.0,121930.0,0.02973693]
[1760004613783,0.55428437,121940.0,121930.0,0.00136693]
[1760004613946,1.12681607,121940.0,121930.0,0.00136693]
[1760004614742,1.12301607,121940.0,121930.0,0.00136693]
[1760004614946,0.78192437,121940.0,121930.0,0.00136693]
[1760004615176,1.12301607,121940.0,121930.0,0.00136693]
[1760004616985,0.78192437,121940.0,121930.0,0.00136693]
[1760004617126,1.12301607,121940.0,121930.0,0.00136693]
[1760004618687,1.12681607,121940.0,121930.0,0.00136693]
[1760004621876,1.11913463,121940.0,121930.0,0.00136693]
[1760004623198,1.19913143,121940.0,121930.0,0.00136693]
[1760004624268,0.97538161,121940.0,121930.0,0.00136693]
[1760004624485,0.89538481,121940.0,121930.0,0.00136693]
[1760004624685,1.22532942,121940.0,121930.0,0.00136693]
[1760004625187,0.99388942,121940.0,121930.0,0.00136693]
[1760004625384,1.20225669,121940.0,121930.0,0.00136693]
[1760004625835,1.30532799,121940.0,121930.0,0.00136693]
[1760004626286,1.30732799,121940.0,121930.0,0.00136693]
[1760004626535,1.30730754,121940.0,121930.0,0.00136693]
[1760004626761,1.30530754,121940.0,121930.0,0.00136693]
[1760004627004,1.30730754,121940.0,121930.0,0.00136693]
[1760004627179,1.30830754,121940.0,121930.0,0.00136693]
[1760004627670,1.07586754,121940.0,121930.0,0.00136693]
[1760004627874,1.07686754,121940.0,121930.0,0.00136693]
[1760004628104,1.30830754,121940.0,121930.0,0.00136693]
[1760004628313,1.07686754,121940.0,121930.0,0.00136693]
[1760004628523,1.30830754,121940.0,121930.0,0.00136693]
[1760004629065,1.37133885,121940.0,121930.0,0.00136693]
[1760004629266,1.71243055,121940.0,121930.0,0.00136693]
[1760004629467,1.37133885,121940.0,121930.0,0.00136693]
[1760004629875,1.48099055,121940.0,121930.0,0.00136693]
[1760004630058,1.71243055,121940.0,121930.0,0.00136693]
[1760004632030,0.71881035,121940.0,121930.0,0.00136693]
[1760004632228,1.37666205,121940.0,121930.0,0.00136693]
[1760004632400,1.36127621,121940.0,121930.0,0.00136693]
[1760004632602,1.02127621,121940.0,121930.0,0.00136693]
[1760004632817,0.6414849,121940.0,121930.0,0.00136693]
[1760004633226,1.2982449,121940.0,121930.0,0.00136693]
[1760004634345,1.2129249,121940.0,121930.0,0.00136693]
[1760004635128,1.20525669,121940.0,121930.0,0.00136693]
[1760004635303,1.10525669,121940.0,121930.0,0.00136693]
[1760004635656,0.87381669,121940.0,121930.0,0.00136693]
[1760004635792,1.10525669,121940.0,121930.0,0.00136693]
[1760004636008,0.87381669,121940.0,121930.0,0.00136693]
[1760004636209,1.10145669,121940.0,121930.0,0.00136693]
[1760004636412,1.10912535,121940.0,121930.0,0.00136693]
[1760004636611,1.11292535,121940.0,121930.0,0.00136693]
[1760004637250,1.10525669,121940.0,121930.0,0.00136693]
[1760004637477,1.11292562,121940.0,121930.0,0.00136693]
[1760004637899,0.44580293,121940.0,121930.0,0.00136693]
[1760004638220,0.67724293,121940.0,121930.0,0.01740693]
[1760004638596,0.67724293,121940.0,121930.0,0.00136693]
[1760004638798,0.78689463,121940.0,121930.0,0.00136693]
[1760004639015,1.02980381,121940.0,121930.0,0.00136693]
[1760004639249,0.68104293,121940.0,121930.0,0.00136693]
[1760004639424,1.02980413,121940.0,121930.0,0.00136693]
[1760004641392,1.10980093,121940.0,121930.0,0.00136693]
[1760004641741,1.10980203,121940.0,121930.0,0.00136693]
[1760004642110,1.11292729,121940.0,121930.0,0.00136693]
[1760004643939,1.53955143,121940.0,121930.0,0.00136693]
[1760004644341,1.30811143,121940.0,121930.0,0.00136693]
[1760004644502,1.55489643,121940.0,121930.0,0.00136693]
[1760004645498,1.32345643,121940.0,121930.0,0.00136693]
[1760004645750,1.63489323,121940.0,121930.0,0.00136693]
[1760004647407,1.40345323,121940.0,121930.0,0.00136693]
[1760004647614,1.63489323,121940.0,121930.0,0.00136693]
[1760004647872,2.06153323,121940.0,121930.0,0.00136693]
[1760004651002,2.06154984,121940.0,121930.0,0.00136693]
[1760004652640,2.17118568,121940.0,121930.0,1e-08]
[1760004652862,2.85854879,121940.0,121930.0,1e-08]
[1760004653069,2.20046879,121940.0,121930.0,1e-08]
[1760004653204,2.87623401,121940.0,121930.0,1e-08]
[1760004653876,2.87627401,121940.0,121930.0,1e-08]
[1760004654632,2.87527401,121940.0,121930.0,1e-08]
[1760004654834,2.87727401,121940.0,121930.0,1e-08]
[1760004655256,2.85958879,121940.0,121930.0,1e-08]
[1760004655882,2.85758879,121940.0,121930.0,1e-08]
[1760004656082,2.85958879,121940.0,121930.0,1e-08]
[1760004658144,2.20146879,121940.0,121930.0,1e-08]
[1760004658355,2.85962879,121940.0,121930.0,1e-08]
[1760004659381,2.85961708,121940.0,121930.0,1e-08]
[1760004660057,2.20145708,121940.0,121930.0,1e-08]
[1760004660277,2.09190124,121940.0,121930.0,1e-08]
[1760004660757,2.07655814,121940.0,121930.0,1e-08]
[1760004660993,2.09190086,121940.0,121930.0,1e-08]
[1760004663980,2.17826086,121940.0,121930.0,1e-08]
[1760004664200,2.09190086,121940.0,121930.0,1e-08]
[1760004664428,1.43374086,121940.0,121930.0,1e-08]
[1760004664891,0.98770823,121940.0,121930.0,1e-08]
[1760004665128,1.73099879,121940.0,121930.0,1e-08]
[1760004665377,1.07283879,121940.0,121930.0,1e-08]
[1760004665591,1.73099879,121940.0,121930.0,1e-08]
[1760004666218,1.64567879,121940.0,121930.0,1e-08]
[1760004666445,1.73099879,121940.0,121930.0,1e-08]
[1760004666866,1.81099559,121940.0,121930.0,1e-08]
[1760004667278,1.73099879,121940.0,121930.0,1e-08]
[1760004667920,1.64567879,121940.0,121930.0,1e-08]
[1760004668149,1.73099879,121940.0,121930.0,1e-08]
[1760004668821,1.72671567,121940.0,121930.0,1e-08]
[1760004669392,1.64139567,121940.0,121930.0,1e-08]
[1760004669598,1.72671567,121940.0,121930.0,1e-08]
[1760004669797,1.80671247,121940.0,121930.0,1e-08]
[1760004670169,1.72671567,121940.0,121930.0,1e-08]
[1760004671317,1.15387567,121940.0,121930.0,1e-08]
[1760004671516,1.38535567,121940.0,121930.0,1e-08]
[1760004672662,1.64134095,121940.0,121930.0,1e-08]
[1760004672877,1.40978095,121940.0,121930.0,1e-08]
[1760004673100,2.25749359,121940.0,121930.0,1e-08]
[1760004673313,1.72137775,121940.0,121930.0,1e-08]
[1760004673662,1.48977775,121940.0,121930.0,1e-08]
[1760004673913,1.72137775,121940.0,121930.0,1e-08]
[1760004674267,1.48977775,121940.0,121930.0,1e-08]
[1760004674477,1.72137775,121940.0,121930.0,1e-08]
[1760004675106,1.48977775,121940.0,121930.0,1e-08]
[1760004675323,1.72137775,121940.0,121930.0,1e-08]
[1760004676521,1.72138134,121940.0,121930.0,1e-08]
[1760004679339,1.48978134,121940.0,121930.0,1e-08]
[1760004679761,1.72134134,121940.0,121930.0,1e-08]
[1760004680717,1.48978134,121940.0,121930.0,1e-08]
[1760004680927,1.72134134,121940.0,121930.0,1e-08]
[1760004681125,1.48978134,121940.0,121930.0,1e-08]
[1760004681374,1.72134134,121940.0,121930.0,1e-08]
[1760004683506,1.48978134,121940.0,121930.0,1e-08]
[1760004684180,1.72130134,121940.0,121930.0,1e-08]
[1760004684820,2.48901718,121940.0,121930.0,1e-08]
[1760004685032,2.50672059,121940.0,121930.0,1e-08]
[1760004685418,1.73900475,121940.0,121930.0,1e-08]
[1760004686364,2.27520059,121940.0,121930.0,1e-08]
[1760004686639,2.50672059,121940.0,121930.0,1e-08]
[1760004687578,1.73900475,121940.0,121930.0,1e-08]
[1760004690438,1.78825475,121940.0,121930.0,1e-08]
[1760004690731,1.73903141,121940.0,121930.0,1e-08]
[1760004692344,2.08039141,121940.0,121930.0,1e-08]
[1760004693199,1.42219141,121940.0,121930.0,1e-08]
[1760004693414,2.08039141,121940.0,121930.0,1e-08]
[1760004694013,2.16675141,121940.0,121930.0,1e-08]
[1760004694275,2.08039141,121940.0,121930.0,1e-08]
[1760004694638,1.84887141,121940.0,121930.0,1e-08]
[1760004694839,2.08035141,121940.0,121930.0,1e-08]
[1760004703998,1.65391372,121940.0,121930.0,1e-08]
[1760004705051,1.65391689,121940.0,121930.0,1e-08]
[1760004706220,2.09921689,121940.0,121930.0,1e-08]
[1760004707446,2.0915359,121940.0,121930.0,1e-08]
[1760004707649,2.09922293,121940.0,121930.0,1e-08]
[1760004710091,1.65392293,121940.0,121930.0,1e-08]
[1760004710665,1.76372108,121940.0,121930.0,1e-08]
[1760004710876,1.99520108,121940.0,121930.0,1e-08]
[1760004711057,1.65392293,121940.0,121930.0,1e-08]
[1760004720259,1.56860293,121940.0,121930.0,1e-08]
[1760004720417,1.65392293,121940.0,121930.0,1e-08]
[1760004722890,1.65393597,121940.0,121930.0,1e-08]
[1760004727352,1.65394177,121940.0,121930.0,1e-08]
[1760004728958,1.65394176,121940.0,121930.0,1e-08]
[1760004729560,1.65394178,121940.0,121930.0,1e-08]
[1760004733385,1.42246178,121940.0,121930.0,1e-08]
[1760004733626,1.56862178,121940.0,121930.0,1e-08]
[1760004733940,1.65394178,121940.0,121930.0,1e-08]
[1760004735309,1.57394498,121940.0,121930.0,1e-08]
[1760004735520,0.57450683,121940.0,121930.0,1e-08]
[1760004735715,1.34246498,121940.0,121930.0,1e-08]
[1760004735921,1.57394498,121940.0,121930.0,1e-08]
[1760004736924,1.34246498,121940.0,121930.0,1e-08]
[1760004737132,1.60786636,121940.0,121930.0,1e-08]
[1760004737761,1.55624157,121940.0,121930.0,1e-08]
[1760004738552,1.32476157,121940.0,121930.0,1e-08]
[1760004738765,1.55624157,121940.0,121930.0,1e-08]
[1760004739131,0.55680342,121940.0,121930.0,1e-08]
[1760004739343,1.21488157,121940.0,121930.0,1e-08]
[1760004739935,0.87360342,121940.0,121930.0,1e-08]
[1760004740168,1.21488157,121940.0,121930.0,1e-08]
[1760004743322,1.21108157,121940.0,121930.0,1e-08]
[1760004743578,1.21108157,121940.0,121930.0,0.01520001]
[1760004744184,1.19569594,121940.0,121930.0,0.01520001]
[1760004745225,1.19568005,121940.0,121930.0,0.01520001]
[1760004745658,1.19568005,121940.0,121930.0,1e-08]
[1760004745827,1.04799685,121940.0,121930.0,1e-08]
[1760004746042,1.27947685,121940.0,121930.0,1e-08]
[1760004746427,0.93052179,121940.0,121930.0,1e-08]
[1760004746632,0.93819702,121940.0,121930.0,1e-08]
[1760004746790,1.27947517,121940.0,121930.0,1e-08]
[1760004747214,1.27947511,121940.0,121930.0,1e-08]
[1760004747828,1.19947831,121940.0,121930.0,1e-08]
[1760004748040,1.19180314,121940.0,121930.0,1e-08]
[1760004749538,1.19947775,121940.0,121930.0,1e-08]
[1760004750127,0.96799775,121940.0,121930.0,1e-08]
[1760004750445,1.19943775,121940.0,121930.0,1e-08]
[1760004751969,1.03396315,121940.0,121930.0,1e-08]
[1760004752177,1.26540315,121940.0,121930.0,1e-08]
[1760004752409,0.94864315,121940.0,121930.0,1e-08]
[1760004752615,1.26539999,121940.0,121930.0,1e-08]
[1760004753897,1.26539978,121940.0,121930.0,1e-08]
[1760004756512,0.92412163,121940.0,121930.0,1e-08]
[1760004756744,1.26539978,121940.0,121930.0,1e-08]
[1760004757326,0.85815623,121940.0,121930.0,1e-08]
[1760004757747,1.19943438,121940.0,121930.0,1e-08]
[1760004761551,0.96799438,121940.0,121930.0,1e-08]
[1760004761751,0.88267438,121940.0,121930.0,1e-08]
[1760004761962,1.11031438,121940.0,121930.0,1e-08]
[1760004763056,1.11411438,121940.0,121930.0,1e-08]
[1760004763709,1.19411118,121940.0,121930.0,1e-08]
[1760004763915,0.53759623,121940.0,121930.0,1e-08]
[1760004764119,1.11411438,121940.0,121930.0,1e-08]
[1760004765315,1.1294748,121940.0,121930.0,1e-08]
[1760004767034,1.63576058,121940.0,121930.0,1e-08]
[1760004768302,0.86820242,121940.0,121930.0,1e-08]
[1760004768420,1.63576058,121940.0,121930.0,1e-08]
[1760004769178,1.37990786,121940.0,121930.0,1e-08]
[1760004769353,1.29991106,121940.0,121930.0,1e-08]
[1760004769614,0.64208562,121940.0,121930.0,1e-08]
[1760004769795,1.38523106,121940.0,121930.0,1e-08]
[1760004770008,1.06847106,121940.0,121930.0,1e-08]
[1760004770232,1.15379106,121940.0,121930.0,1e-08]
[1760004770446,1.46522786,121940.0,121930.0,1e-08]
[1760004779001,0.55676562,121940.0,121930.0,1e-08]
[1760004779213,1.38523106,121940.0,121930.0,1e-08]
[1760004785193,1.38523929,121940.0,121930.0,1e-08]
[1760004787734,0.81262657,121940.0,121930.0,1e-08]
[1760004787962,0.87349385,121940.0,121930.0,1e-08]
[1760004788214,1.38519929,121940.0,121930.0,1e-08]
[1760004788680,1.23379609,121940.0,121930.0,1e-08]
[1760004788936,1.46519609,121940.0,121930.0,1e-08]
[1760004789828,1.23379609,121940.0,121930.0,1e-08]
[1760004790043,1.46519609,121940.0,121930.0,1e-08]
[1760004796105,0.95349065,121940.0,121930.0,1e-08]
[1760004796322,1.46519609,121940.0,121930.0,1e-08]
[1760004796545,1.46519943,121940.0,121930.0,1e-08]
[1760004796741,1.46522257,121940.0,121930.0,1e-08]
[1760004798193,0.95351713,121940.0,121930.0,1e-08]
[1760004798499,1.46522271,121940.0,121930.0,1e-08]
[1760004800876,1.72107543,121940.0,121930.0,1e-08]
[1760004801318,1.48967647,121940.0,121930.0,1e-08]
[1760004801565,1.72107647,121940.0,121930.0,1e-08]
[1760004802333,1.48967647,121940.0,121930.0,1e-08]
[1760004802538,1.72107647,121940.0,121930.0,1e-08]
[1760004807827,1.72106166,121940.0,121930.0,1e-08]
[1760004809792,1.72105258,121940.0,121930.0,1e-08]
[1760004814159,1.40433258,121940.0,121930.0,1e-08]
[1760004814404,1.83097258,121940.0,121930.0,1e-08]
[1760004814642,1.40433258,121940.0,121930.0,1e-08]
[1760004815028,2.06237258,121940.0,121930.0,1e-08]
[1760004815414,1.63573258,121940.0,121930.0,1e-08]
[1760004815612,2.06237258,121940.0,121930.0,1e-08]
[1760004816169,1.63573258,121940.0,121930.0,1e-08]
[1760004816360,2.06237258,121940.0,121930.0,1e-08]
[1760004817788,1.80651815,121940.0,121930.0,1e-08]
[1760004818895,1.79842789,121940.0,121930.0,1e-08]
[1760004819425,0.97532565,121940.0,121930.0,1e-08]
[1760004819638,1.71843109,121940.0,121930.0,1e-08]
[1760004820553,1.37711109,121940.0,121930.0,1e-08]
[1760004822608,1.05995109,121940.0,121930.0,1e-08]
[1760004822766,1.37667109,121940.0,121930.0,1e-08]
[1760004824011,1.38491086,121940.0,121930.0,1e-08]
[1760004825982,1.21437187,121940.0,121930.0,1e-08]
[1760004827756,1.28189244,121940.0,121930.0,1e-08]
[1760004828005,1.28189779,121940.0,121930.0,1e-08]
[1760004830260,1.28194825,121940.0,121930.0,1e-08]
[1760004834220,1.28195162,121940.0,121930.0,1e-08]
[1760004835340,1.28195483,121940.0,121930.0,1e-08]
[1760004835836,1.21443426,121940.0,121930.0,1e-08]
[1760004837704,0.87326781,121940.0,121930.0,1e-08]
[1760004837922,1.21443426,121940.0,121930.0,1e-08]
[1760004839905,0.98303426,121940.0,121930.0,1e-08]
[1760004840110,1.21443426,121940.0,121930.0,1e-08]
[1760004842519,1.28037153,121940.0,121930.0,1e-08]
[1760004846746,1.21443426,121940.0,121930.0,1e-08]
[1760004848738,1.65973426,121940.0,121930.0,1e-08]
[1760004850385,1.65204668,121940.0,121930.0,1e-08]
[1760004850590,1.6597378,121940.0,121930.0,1e-08]
[1760004852490,0.99805135,121940.0,121930.0,0.01547001]
[1760004852713,0.55275135,121940.0,121930.0,0.19131855]
[1760004852939,0.55275135,121940.0,121930.0,0.02729001]
[1760004853155,0.44411135,121940.0,121930.0,0.02729001]
[1760004853394,0.20668135,121940.0,121930.0,0.21396855]
[1760004853623,0.33954402,121940.0,121930.0,0.21396855]
[1760004853869,0.34561402,121940.0,121930.0,0.19131855]
[1760004854093,0.34561402,121940.0,121930.0,0.02729001]
[1760004854774,0.68678047,121940.0,121930.0,1e-08]
[1760004858986,0.68677016,121940.0,121930.0,1e-08]
[1760004859224,0.33129394,121940.0,121930.0,0.04994001]
[1760004859442,0.43173394,121940.0,121930.0,0.21396855]
[1760004860104,0.43173289,121940.0,121930.0,0.21396855]
[1760004860316,0.42205313,121940.0,121930.0,0.21396855]
[1760004860528,0.42005313,121940.0,121930.0,0.21396855]
[1760004860739,0.42205313,121940.0,121930.0,0.21396855]
[1760004860986,0.42405313,121940.0,121930.0,0.21396855]
[1760004862469,0.02867805,121940.0,121930.0,0.21396855]
[1760004863126,0.26003805,121940.0,121930.0,0.21396855]
[1760004872880,0.42401313,121940.0,121930.0,0.04994001]
[1760004873084,0.42401313,121940.0,121930.0,0.21396855]
[1760004873491,0.43008313,121940.0,121930.0,0.19131855]
[1760004873921,0.42401313,121940.0,121930.0,0.19131855]
[1760004874192,0.42401313,121940.0,121930.0,0.21480855]
[1760004874483,0.39938554,121940.0,121930.0,0.21480855]
[1760004878401,0.40545554,121940.0,121930.0,0.19131855]
[1760004878923,0.39938554,121940.0,121930.0,0.21480855]
[1760004880472,0.40545554,121940.0,121930.0,0.19131855]
[1760004880652,0.39938554,121940.0,121930.0,0.19131855]
[1760004880860,0.39938554,121940.0,121930.0,0.21480855]
[1760004881553,0.16806554,121940.0,121930.0,0.21480855]
[1760004881755,0.39938554,121940.0,121930.0,0.21480855]
[1760004883154,0.42401354,121940.0,121930.0,0.21480855]
[1760004883779,0.19269354,121940.0,121930.0,0.21480855]
[1760004883991,0.42401354,121940.0,121930.0,0.21480855]
[1760004885896,0.02867846,121940.0,121930.0,0.21480855]
[1760004886101,0.25999846,121940.0,121930.0,0.21480855]
[1760004886550,0.02867846,121940.0,121930.0,0.21480855]
[1760004886764,0.25999846,121940.0,121930.0,0.21480855]
[1760004887938,0.51577471,121940.0,121930.0,0.21480855]
[1760004888151,0.67978979,121940.0,121930.0,0.21480855]
[1760004888922,0.51577471,121940.0,121930.0,0.21480855]
[1760004889138,0.67978979,121940.0,121930.0,0.21480855]
[1760004889712,0.51577471,121940.0,121930.0,0.21480855]
[1760004890115,0.25999846,121940.0,121930.0,0.21480855]
[1760004890536,0.51577471,121940.0,121930.0,0.21480855]
[1760004892646,0.67978979,121940.0,121930.0,0.21480855]
[1760004894674,0.42401354,121940.0,121930.0,0.21480855]
[1760004894876,0.67978979,121940.0,121930.0,0.21480855]
[1760004895297,0.51577471,121940.0,121930.0,0.21480855]
[1760004895744,0.02867846,121940.0,121930.0,0.4705848]
[1760004895951,0.25999846,121940.0,121930.0,0.4705848]
[1760004896395,0.02867846,121940.0,121930.0,0.21480855]
[1760004896601,0.25999846,121940.0,121930.0,0.21480855]
[1760004896915,0.02867846,121940.0,121930.0,0.21480855]
[1760004897150,0.25999846,121940.0,121930.0,0.21480855]
[1760004901773,0.51577471,121940.0,121930.0,0.21480855]
[1760004901994,0.25999846,121940.0,121930.0,0.21480855]
[1760004902202,0.51577471,121940.0,121930.0,0.21480855]
[1760004903863,0.67978979,121940.0,121930.0,0.21480855]
[1760004904077,0.68581979,121940.0,121930.0,0.02729001]
[1760004904303,0.94159604,121940.0,121930.0,0.02729001]
[1760004904528,0.94539604,121940.0,121930.0,1e-08]
[1760004905196,0.94159604,121940.0,121930.0,1e-08]
[1760004906618,0.94539604,121940.0,121930.0,1e-08]
[1760004906826,0.94159604,121940.0,121930.0,1e-08]
[1760004908835,0.43004354,121940.0,121930.0,0.02732001]
[1760004909086,0.44846979,121940.0,121930.0,0.21578855]
[1760004909289,0.68581979,121940.0,121930.0,0.19134855]
[1760004909723,0.42397354,121940.0,121930.0,0.21578855]
[1760004909940,0.67974979,121940.0,121930.0,0.21578855]
[1760004910621,0.19269354,121940.0,121930.0,0.21578855]
[1760004910861,0.44846979,121940.0,121930.0,0.21578855]
[1760004911061,0.67974979,121940.0,121930.0,0.21578855]
[1760004911272,0.44846979,121940.0,121930.0,0.21578855]
[1760004911486,0.67974979,121940.0,121930.0,0.21578855]
[1760004912930,0.44846979,121940.0,121930.0,0.21578855]
[1760004913156,0.42397354,121940.0,121930.0,0.21578855]
[1760004913891,0.02867846,121940.0,121930.0,0.21578855]
[1760004914110,0.00405046,121940.0,121930.0,0.21578855]
[1760004914551,0.00405046,121940.0,121930.0,0.4715648]